fUST/lending_fUST_20240821
["ID","MTS","AMOUNT","RATE_DAILY","PERIOD"]
[335391294,1724179840051,-151.0,0.00030523,2]
[335391295,1724179840062,-519.04,0.000307,31]
[335391296,1724179840072,-519.04,0.000307,31]
[335391297,1724179840083,-519.04,0.000307,31]
[335391298,1724179840093,-519.04,0.000307,31]
[335391300,1724179840102,-519.04,0.000307,31]
[335391302,1724179840113,-519.04,0.000307,31]
[335391305,1724179840124,-519.04,0.000307,31]
[335391306,1724179840134,-519.04,0.000307,31]
[335391308,1724179840143,-519.04,0.000307,31]
[335391310,1724179840153,-519.04,0.000307,31]
[335391312,1724179840162,-519.04,0.000307,31]
[335391314,1724179840172,-519.04,0.000307,31]
[335391316,1724179840182,-519.04,0.000307,31]
[335391318,1724179840191,-519.04,0.000307,31]
[335391319,1724179840201,-519.04,0.000307,31]
[335391321,1724179840211,-519.04,0.000307,31]
[335391323,1724179840220,-519.04,0.000307,31]
[335391324,1724179840230,-519.04,0.000307,31]
[335391326,1724179840240,-519.04,0.000307,31]
[335391327,1724179840249,-519.04,0.000307,31]
[335391328,1724179840259,-519.04,0.000307,31]
[335391329,1724179840268,-519.04,0.000307,31]
[335391331,1724179840277,-519.04,0.000307,31]
[335391333,1724179840287,-519.04,0.000307,31]
[335391334,1724179840298,-150.112233,0.000307,5]
[335391336,1724179840307,-150.112233,0.000312,6]
[335391338,1724179840317,-1065.06381342,0.00031325,2]
[335391339,1724179840326,-150.112233,0.000316,9]
[335391340,1724179840335,-172.0,0.00031644,2]
[335391341,1724179840346,-45022.702142,0.0003179,4]
[335391342,1724179840355,-41663.13,0.000318,14]
[335391343,1724179840365,-1588.23946763,0.00031804,2]
[335391344,1724179840375,-1000.0,0.00032,32]
[335391345,1724179840385,-437.0,0.00032,5]
[335391346,1724179840395,-430.0,0.00032015,3]
[335391347,1724179840405,-151.0,0.00032015,3]
[335391348,1724179840414,-150.112233,0.000321,8]
[335391350,1724179840424,-1415.0,0.00032197,2]
[335391351,1724179840434,-7726.0,0.00032197,2]
[335391352,1724179840444,-150.112233,0.000322,8]
[335391353,1724179840454,-160.0,0.000324,4]
[335391354,1724179840463,-592.74060959,0.000324,2]
[335391355,1724179840473,-1065.06381342,0.000324,2]
[335391356,1724179840483,-4495.19,0.000324,14]
[335391357,1724179840493,-135068.106426,0.0003249,4]
[335391358,1724179840502,-323253.02218176,0.000325,60]
[335391359,1724179840512,-298.0,0.000325,7]
[335391360,1724179840522,-825.1,0.000325,14]
[335391361,1724179840532,-5125.1975621,0.00032504,2]
[335391362,1724179840542,-592.74060956,0.00032678,2]
[335391363,1724179840552,-519.04,0.000327,31]
[335391364,1724179840562,-519.04,0.000327,31]
[335391365,1724179840572,-519.04,0.000327,31]
[335391366,1724179840582,-519.04,0.000327,31]
[335391367,1724179840591,-519.04,0.000327,31]
[335391368,1724179840600,-519.04,0.000327,31]
[335391369,1724179840610,-519.04,0.000327,31]
[335391370,1724179840620,-519.04,0.000327,31]
[335391371,1724179840631,-519.04,0.000327,31]
[335391372,1724179840640,-519.04,0.000327,31]
[335391373,1724179840653,-519.04,0.000327,31]
[335391374,1724179840664,-519.04,0.000327,31]
[335391375,1724179840675,-519.04,0.000327,31]
[335391376,1724179840685,-519.04,0.000327,31]
[335391377,1724179840694,-519.04,0.000327,31]
[335391378,1724179840704,-519.04,0.000327,31]
[335391379,1724179840713,-519.04,0.000327,31]
[335391380,1724179840723,-519.04,0.000327,31]
[335391381,1724179840735,-519.04,0.000327,31]
[335391382,1724179840744,-519.04,0.000327,31]
[335391383,1724179840754,-519.04,0.000327,31]
[335391384,1724179840764,-519.04,0.000327,31]
[335391385,1724179840776,-519.04,0.000327,31]
[335391386,1724179840786,-519.04,0.000327,31]
[335391387,1724179840796,-5125.1975621,0.0003284,2]
[335391388,1724179840806,-150.112233,0.000329,10]
[335391389,1724179840816,-5125.1975621,0.00032914,2]
[335391390,1724179840825,-592.74060956,0.00032956,2]
[335391391,1724179840835,-9991.83961064,0.00033,120]
[335391392,1724179840844,-300.0,0.00033,7]
[335391393,1724179840854,-7384.10920276,0.00033,7]
[335391394,1724179840863,-152.0,0.00033,2]
[335391395,1724179840873,-165.0,0.00033,2]
[335391396,1724179840882,-592.74060956,0.00033233,2]
[335391397,1724179840893,-155.12080504,0.00033234,3]
[335391398,1724179840903,-5125.1975621,0.00033252,2]
[335391399,1724179840912,-430.0,0.00033507,4]
[335391400,1724179840922,-151.0,0.00033507,4]
[335391401,1724179840931,-592.74060956,0.00033511,2]
[335391402,1724179840941,-185.382951,0.00033598,2]
[335391403,1724179840950,-150.112233,0.000336,9]
[335391404,1724179840960,-5125.1975621,0.00033603,2]
[335391405,1724179840970,-216.734237,0.00033626,2]
[335391406,1724179840980,-5125.1975621,0.00033788,2]
[335391407,1724179840989,-592.74060956,0.00033789,2]
[335391408,1724179840999,-1932.186094,0.000339,16]
[335391409,1724179841008,-150.0,0.00033911,2]
[335391410,1724179841021,-1000.0,0.00034,34]
[335391411,1724179841030,-300.0,0.00034,9]
[335391412,1724179841039,-7384.0,0.00034,7]
[335391413,1724179841049,-828.80041013,0.00034,7]
[335391414,1724179841059,-592.74060956,0.00034067,2]
[335391415,1724179841068,-5125.1975621,0.00034118,2]
[335391416,1724179841077,-150.0,0.00034181,2]
[335391417,1724179841087,-2853.63,0.00034199,2]
[335391418,1724179841097,-2853.63,0.00034199,2]
[335391419,1724179841107,-2853.63,0.00034199,2]
[335391420,1724179841116,-2853.63,0.00034199,2]
[335391421,1724179841126,-2853.63,0.00034199,2]
[335391422,1724179841135,-2853.63,0.00034199,2]
[335391423,1724179841145,-2853.63,0.00034199,2]
[335391424,1724179841154,-2853.63,0.00034199,2]
[335391425,1724179841163,-2853.63,0.00034199,2]
[335391426,1724179841173,-2853.63,0.00034199,2]
[335391427,1724179841182,-41663.13,0.000342,14]
[335391428,1724179841192,-4495.19,0.000342,14]
[335391429,1724179841202,-257.225589,0.00034247,2]
[335391430,1724179841211,-151.20881187,0.00034277,2]
[335391431,1724179841221,-150.112233,0.000343,9]
[335391432,1724179841232,-298.0,0.000343,30]
[335391433,1724179841242,-825.1,0.000343,14]
[335391434,1724179841253,-592.74060956,0.00034344,2]
[335391435,1724179841266,-1000.0,0.000344,16]
[335391436,1724179841276,-5125.1975621,0.00034507,2]
[335391437,1724179841286,-500.0,0.0003452,21]
[335391438,1724179841295,-500.0,0.0003452,21]
[335391439,1724179841304,-500.0,0.0003452,21]
[335391440,1724179841313,-500.0,0.0003452,21]
[335391441,1724179841323,-500.0,0.0003452,21]
[335391442,1724179841335,-500.0,0.0003452,21]
[335391443,1724179841345,-500.0,0.0003452,21]
[335391444,1724179841354,-500.0,0.0003452,21]
[335391445,1724179841363,-500.0,0.0003452,21]
[335391446,1724179841371,-500.0,0.0003452,21]
[335391447,1724179841381,-500.0,0.0003452,21]
[335391448,1724179841390,-500.0,0.0003452,21]
[335391449,1724179841400,-500.0,0.0003452,21]
[335391450,1724179841409,-500.0,0.0003452,21]
[335391451,1724179841419,-331.16,0.0003452,21]
[335391452,1724179841430,-165.0,0.00034521,2]
[335391453,1724179841439,-306.0,0.00034575,2]
[335391454,1724179841449,-592.74060956,0.00034622,2]
[335391455,1724179841458,-5125.19756213,0.00034702,2]
[335391456,1724179841467,-503.74077903,0.00034756,2]
[335391457,1724179841477,-1742.01513063,0.000348,12]
[335391458,1724179841486,-1742.01513063,0.000348,12]
[335391459,1724179841495,-1742.01513063,0.000348,12]
[335391460,1724179841505,-1742.01513063,0.000348,12]
[335391461,1724179841520,-519.04,0.000348,31]
[335391462,1724179841530,-519.04,0.000348,31]
[335391463,1724179841539,-519.04,0.000348,31]
[335391464,1724179841549,-519.04,0.000348,31]
[335391465,1724179841558,-519.04,0.000348,31]
[335391466,1724179841568,-519.04,0.000348,31]
[335391467,1724179841578,-519.04,0.000348,31]
[335391468,1724179841587,-519.04,0.000348,31]
[335391469,1724179841597,-519.04,0.000348,31]
[335391470,1724179841606,-519.04,0.000348,31]
[335391471,1724179841616,-519.04,0.000348,31]
[335391472,1724179841626,-519.04,0.000348,31]
[335391473,1724179841636,-519.04,0.000348,31]
[335391474,1724179841647,-519.04,0.000348,31]
[335391475,1724179841659,-519.04,0.000348,31]
[335391476,1724179841670,-519.04,0.000348,31]
[335391477,1724179841680,-150.0,0.00034873,5]
[335391478,1724179841690,-150.0,0.000349,2]
[335391479,1724179841699,-755.0,0.000349,2]
[335391480,1724179841709,-1588.23946763,0.000349,2]
[335391481,1724179841719,-592.74060956,0.000349,2]
[335391482,1724179841730,-1000.0,0.000349,16]
[335391483,1724179841739,-673.07858906,0.0003493,2]
[335391484,1724179841750,-196.24143283,0.00034931,4]
[335391485,1724179841761,-2419.89933959,0.00034931,4]
[335391486,1724179841773,-169960.8262566,0.00034931,60]
[335391487,1724179841783,-489.18411625,0.00034931,3]
[335391488,1724179841793,-661.39949385,0.00034931,4]
[335391489,1724179841802,-434.00975875,0.00034931,4]
[335391490,1724179841812,-14123.40177973,0.00034931,7]
[335391491,1724179841821,-500.0,0.00034931,21]
[335391492,1724179841831,-500.0,0.00034931,21]
[335391493,1724179841842,-500.0,0.00034931,21]
[335391494,1724179841852,-502.76378911,0.00034931,21]
[335391495,1724179841862,-500.0,0.00034931,21]
[335391496,1724179841872,-500.0,0.00034931,21]
[335391497,1724179841881,-162.77968979,0.00034931,21]
[335391498,1724179841891,-500.0,0.00034931,21]
[335391499,1724179841900,-509.93065754,0.00034931,21]
[335391500,1724179841910,-500.0,0.00034931,21]
[335391501,1724179841920,-500.0,0.00034931,21]
[335391502,1724179841930,-500.0,0.00034931,21]
[335391503,1724179841939,-500.0,0.00034931,21]
[335391504,1724179841949,-500.0,0.00034931,21]
[335391505,1724179841959,-514.40417949,0.00034931,21]
[335391506,1724179841968,-500.0,0.00034931,21]
[335391507,1724179841978,-500.0,0.00034931,21]
[335391508,1724179841987,-302.83401711,0.00034931,21]
[335391509,1724179841997,-500.0,0.00034931,21]
[335391510,1724179842006,-500.0,0.00034931,21]
[335391511,1724179842023,-509.52708018,0.00034931,21]
[335391512,1724179842033,-502.65521453,0.00034931,21]
[335391513,1724179842042,-500.0,0.00034931,21]
[335391514,1724179842051,-500.0,0.00034931,21]
[335391515,1724179842062,-500.0,0.00034931,21]
[335391516,1724179842071,-595.9,0.00034931,21]
[335391517,1724179842081,-501.29634088,0.00034931,21]
[335391518,1724179842091,-500.0,0.00034931,21]
[335391519,1724179842101,-500.0,0.00034931,21]
[335391520,1724179842111,-500.0,0.00034931,21]
[335391521,1724179842121,-500.0,0.00034931,21]
[335391522,1724179842132,-500.0,0.00034931,21]
[335391523,1724179842142,-500.0,0.00034931,21]
[335391524,1724179842152,-541.58,0.00034931,21]
[335391525,1724179842163,-500.0,0.00034931,21]
[335391526,1724179842172,-500.0,0.00034931,21]
[335391527,1724179842182,-500.0,0.00034931,21]
[335391528,1724179842278,-501.74113037,0.00034931,21]
[335391529,1724179842288,-500.0,0.00034931,21]
[335391530,1724179842298,-500.0,0.00034931,21]
[335391531,1724179842307,-500.0,0.00034931,21]
[335391532,1724179842317,-500.0,0.00034931,21]
[335391533,1724179842326,-500.0,0.00034931,21]
[335391534,1724179842335,-500.0,0.00034931,21]
[335391535,1724179842344,-612.44329979,0.00034931,21]
[335391536,1724179842354,-500.0,0.00034931,21]
[335391537,1724179842364,-502.59079864,0.00034931,21]
[335391538,1724179842374,-501.98017459,0.00034931,2]
[335391539,1724179842383,-500.0,0.00034931,21]
[335391540,1724179842393,-500.0,0.00034931,21]
[335391541,1724179842402,-500.0,0.00034931,21]
[335391542,1724179842412,-500.0,0.00034931,21]
[335391543,1724179842421,-500.0,0.00034931,21]
[335391544,1724179842432,-508.3067394,0.00034931,21]
[335391545,1724179842442,-500.0,0.00034931,21]
[335391546,1724179842453,-500.0,0.00034931,21]
[335391547,1724179842463,-500.0,0.00034931,21]
[335391548,1724179842474,-525.68585489,0.00034931,21]
[335391549,1724179842484,-500.0,0.00034931,21]
[335391550,1724179842494,-500.0,0.00034931,21]
[335391551,1724179842503,-500.0,0.00034931,21]
[335391552,1724179842514,-500.0,0.00034931,21]
[335391553,1724179842523,-500.0,0.00034931,21]
[335391554,1724179842533,-500.0,0.00034931,21]
[335391555,1724179842543,-500.0,0.00034931,21]
[335391556,1724179842553,-500.0,0.00034931,21]
[335391557,1724179842563,-340.18,0.00034931,21]
[335391558,1724179842572,-500.0,0.00034931,21]
[335391559,1724179842583,-619.12864407,0.00034931,21]
[335391560,1724179842592,-501.89228464,0.00034931,21]
[335391561,1724179842602,-500.0,0.00034931,21]
[335391562,1724179842611,-500.0,0.00034931,21]
[335391563,1724179842622,-500.0,0.00034931,21]
[335391564,1724179842633,-500.0,0.00034931,21]
[335391565,1724179842644,-362.4720858,0.00034931,21]
[335391566,1724179842657,-500.0,0.00034931,21]
[335391567,1724179842667,-503.12940545,0.00034931,21]
[335391568,1724179842677,-509.60882877,0.00034931,21]
[335391569,1724179842686,-500.0,0.00034931,21]
[335391570,1724179842698,-500.0,0.00034931,21]
[335391571,1724179842708,-500.0,0.00034931,21]
[335391572,1724179842717,-564.3,0.00034931,21]
[335391573,1724179842729,-500.0,0.00034931,21]
[335391574,1724179842740,-500.0,0.00034931,21]
[335391575,1724179842751,-500.0,0.00034931,21]
[335391576,1724179842764,-500.0,0.00034931,21]
[335391577,1724179842775,-584.96274854,0.00034931,21]
[335391578,1724179842784,-569.70686458,0.00034931,21]
[335391579,1724179842794,-500.0,0.00034931,21]
[335391580,1724179842803,-500.0,0.00034931,21]
[335391581,1724179842813,-500.0,0.00034931,21]
[335391582,1724179842825,-244.63,0.00034931,21]
[335391583,1724179842835,-500.0,0.00034931,21]
[335391584,1724179842845,-500.0,0.00034931,21]
[335391585,1724179842855,-500.0,0.00034931,21]
[335391586,1724179842865,-500.0,0.00034931,21]
[335391587,1724179842875,-500.0,0.00034931,21]
[335391588,1724179842885,-510.84275945,0.00034931,21]
[335391589,1724179842896,-500.0,0.00034931,21]
[335391590,1724179842906,-500.0,0.00034931,21]
[335391591,1724179842916,-500.0,0.00034931,21]
[335391592,1724179842925,-500.0,0.00034931,21]
[335391593,1724179842935,-244.63,0.00034931,21]
[335391594,1724179842944,-500.0,0.00034931,21]
[335391595,1724179842954,-500.0,0.00034931,21]
[335391596,1724179842963,-265.46143994,0.00034931,21]
[335391597,1724179842973,-500.0,0.00034931,21]
[335391598,1724179842982,-158.59978058,0.00034931,21]
[335391599,1724179842991,-501.4158508,0.00034931,21]
[335391600,1724179843001,-500.0,0.00034931,21]
[335391601,1724179843014,-500.0,0.00034931,21]
[335391602,1724179843024,-500.0,0.00034931,21]
[335391603,1724179843034,-500.0,0.00034931,21]
[335391604,1724179843045,-500.0,0.00034931,21]
[335391605,1724179843054,-500.0,0.00034931,21]
[335391606,1724179843064,-500.0,0.00034931,21]
[335391607,1724179843074,-500.0,0.00034931,21]
[335391608,1724179843084,-500.0,0.00034931,21]
[335391609,1724179843093,-500.0,0.00034931,21]
[335391610,1724179843102,-500.0,0.00034931,21]
[335391611,1724179843113,-500.0,0.00034931,21]
[335391612,1724179843122,-500.0,0.00034931,21]
[335391613,1724179843132,-500.0,0.00034931,21]
[335391614,1724179843142,-418.3118684,0.00034931,21]
[335391615,1724179843151,-500.0,0.00034931,21]
[335391616,1724179843161,-500.0,0.00034931,21]
[335391617,1724179843171,-521.11,0.00034931,21]
[335391618,1724179843180,-500.0,0.00034931,21]
[335391619,1724179843192,-275.16,0.00034931,21]
[335391620,1724179843202,-531.8870573,0.00034931,21]
[335391621,1724179843211,-500.0,0.00034931,21]
[335391622,1724179843221,-500.0,0.00034931,21]
[335391623,1724179843230,-504.32658863,0.00034931,21]
[335391624,1724179843240,-500.0,0.00034931,21]
[335391625,1724179843249,-302.36856451,0.00034931,21]
[335391626,1724179843259,-500.0,0.00034931,21]
[335391627,1724179843272,-500.0,0.00034931,21]
[335391628,1724179843282,-500.94613166,0.00034931,21]
[335391629,1724179843292,-500.0,0.00034931,21]
[335391631,1724179843301,-500.0,0.00034931,21]
[335391632,1724179843311,-602.18389481,0.00034931,21]
[335391633,1724179843320,-500.0,0.00034931,21]
[335391634,1724179843329,-500.0,0.00034931,21]
[335391635,1724179843338,-520.75865901,0.00034931,21]
[335391636,1724179843347,-500.0,0.00034931,21]
[335391637,1724179843357,-500.0,0.00034931,21]
[335391638,1724179843367,-523.45705127,0.00034931,21]
[335391639,1724179843376,-500.0,0.00034931,21]
[335391640,1724179843385,-500.0,0.00034931,21]
[335391642,1724179843395,-500.0,0.00034931,21]
[335391643,1724179843405,-500.0,0.00034931,21]
[335391644,1724179843414,-500.0,0.00034931,21]
[335391645,1724179843424,-192.43,0.00034931,21]
[335391646,1724179843434,-500.0,0.00034931,21]
[335391647,1724179843444,-500.0,0.00034931,21]
[335391648,1724179843453,-500.0,0.00034931,21]
[335391649,1724179843462,-243.79,0.00034931,21]
[335391650,1724179843472,-500.0,0.00034931,21]
[335391651,1724179843481,-500.0,0.00034931,21]
[335391652,1724179843491,-500.0,0.00034931,21]
[335391653,1724179843500,-500.0,0.00034931,21]
[335391655,1724179843509,-500.0,0.00034931,21]
[335391658,1724179843522,-473.76,0.00034931,21]
[335391660,1724179843532,-500.0,0.00034931,21]
[335391662,1724179843541,-502.90595224,0.00034931,21]
[335391664,1724179843551,-500.0,0.00034931,21]
[335391666,1724179843559,-500.0,0.00034931,21]
[335391668,1724179843570,-500.0,0.00034931,21]
[335391670,1724179843579,-502.74253619,0.00034931,21]
[335391672,1724179843588,-500.0,0.00034931,21]
[335391674,1724179843599,-500.0,0.00034931,21]
[335391676,1724179843610,-500.0,0.00034931,21]
[335391677,1724179843620,-500.0,0.00034931,21]
[335391678,1724179843629,-500.0,0.00034931,21]
[335391679,1724179843639,-500.0,0.00034931,21]
[335391680,1724179843651,-500.0,0.00034931,21]
[335391681,1724179843660,-500.0,0.00034931,21]
[335391682,1724179843669,-500.0,0.00034931,21]
[335391683,1724179843679,-500.0,0.00034931,21]
[335391684,1724179843688,-500.0,0.00034931,21]
[335391685,1724179843699,-500.0,0.00034931,21]
[335391686,1724179843708,-500.0,0.00034931,21]
[335391687,1724179843719,-500.0,0.00034931,21]
[335391688,1724179843730,-500.0,0.00034931,21]
[335391689,1724179843740,-500.0,0.00034931,21]
[335391690,1724179843750,-500.0,0.00034931,21]
[335391691,1724179843760,-500.0,0.00034931,21]
[335391693,1724179843772,-500.0,0.00034931,21]
[335391694,1724179843781,-500.0,0.00034931,21]
[335391695,1724179843791,-500.0,0.00034931,21]
[335391696,1724179843800,-500.0,0.00034931,21]
[335391697,1724179843811,-500.0,0.00034931,21]
[335391698,1724179843822,-283.64936366,0.00034931,21]
[335391699,1724179843832,-517.31,0.00034931,21]
[335391700,1724179843843,-517.31,0.00034931,21]
[335391701,1724179843853,-517.31,0.00034931,21]
[335391702,1724179843862,-517.31,0.00034931,21]
[335391703,1724179843874,-517.31,0.00034931,21]
[335391704,1724179843884,-517.31,0.00034931,21]
[335391705,1724179843895,-151.355207,0.00034931,7]
[335391706,1724179843905,-517.31,0.00034931,21]
[335391707,1724179843915,-517.31,0.00034931,21]
[335391708,1724179843925,-517.31,0.00034931,21]
[335391709,1724179843935,-517.31,0.00034931,21]
[335391710,1724179843945,-517.31,0.00034931,21]
[335391711,1724179843954,-517.31,0.00034931,21]
[335391712,1724179843965,-517.31,0.00034931,21]
[335391713,1724179843974,-517.31,0.00034931,21]
[335391714,1724179843984,-517.31,0.00034931,21]
[335391715,1724179843994,-517.31,0.00034931,21]
[335391716,1724179844003,-500.0,0.00034931,21]
[335391717,1724179844014,-517.31,0.00034931,21]
[335391718,1724179844023,-517.31,0.00034931,21]
[335391719,1724179844033,-517.31,0.00034931,21]
[335391720,1724179844042,-517.31,0.00034931,21]
[335391721,1724179844052,-517.31,0.00034931,21]
[335391722,1724179844062,-517.31,0.00034931,21]
[335391723,1724179844072,-517.31,0.00034931,21]
[335391724,1724179844082,-517.54737091,0.00034931,21]
[335391725,1724179844092,-500.0,0.00034931,21]
[335391726,1724179844102,-500.0,0.00034931,21]
[335391727,1724179844112,-500.0,0.00034931,21]
[335391728,1724179844121,-500.0,0.00034931,21]
[335391729,1724179844132,-151.0,0.00034931,7]
[335391730,1724179844142,-500.0,0.00034931,21]
[335391731,1724179844152,-267.32234409,0.00034931,21]
[335391732,1724179844163,-500.0,0.00034931,21]
[335391733,1724179844174,-500.0,0.00034931,21]
[335391734,1724179844183,-500.0,0.00034931,21]
[335391735,1724179844192,-500.0,0.00034931,21]
[335391736,1724179844202,-1179.18,0.00034931,21]
[335391737,1724179844212,-1179.18,0.00034931,21]
[335391738,1724179844222,-1179.18,0.00034931,21]
[335391739,1724179844231,-1179.18,0.00034931,21]
[335391740,1724179844241,-1179.18,0.00034931,21]
[335391741,1724179844251,-1179.18,0.00034931,21]
[335391742,1724179844261,-1179.18,0.00034931,21]
[335391743,1724179844270,-1179.18,0.00034931,21]
[335391744,1724179844279,-1179.18,0.00034931,21]
[335391745,1724179844288,-1179.18,0.00034931,21]
[335391746,1724179844297,-1179.18,0.00034931,21]
[335391747,1724179844306,-1179.18,0.00034931,21]
[335391748,1724179844316,-1179.18,0.00034931,21]
[335391749,1724179844325,-1179.18,0.00034931,21]
[335391750,1724179844334,-1179.18,0.00034931,21]
[335391751,1724179844423,-1179.18,0.00034931,21]
[335391752,1724179844433,-1179.18,0.00034931,21]
[335391753,1724179844443,-1179.18,0.00034931,21]
[335391754,1724179844452,-1179.18,0.00034931,21]
[335391755,1724179844462,-1179.18,0.00034931,21]
[335391756,1724179844471,-1179.18,0.00034931,21]
[335391757,1724179844480,-1179.18,0.00034931,21]
[335391758,1724179844489,-1179.18,0.00034931,21]
[335391759,1724179844499,-1179.36559456,0.00034931,21]
[335391760,1724179844508,-500.0,0.00034931,21]
[335391761,1724179844519,-512.79458603,0.00034931,21]
[335391762,1724179844528,-500.0,0.00034931,21]
[335391763,1724179844537,-624.73401306,0.00034931,21]
[335391764,1724179844546,-500.0,0.00034931,21]
[335391765,1724179844556,-500.0,0.00034931,21]
[335391766,1724179844565,-500.0,0.00034931,21]
[335391767,1724179844574,-500.0,0.00034931,21]
[335391768,1724179844584,-500.0,0.00034931,21]
[335391769,1724179844595,-500.0,0.00034931,21]
[335391770,1724179844604,-153.08246531,0.00034931,21]
[335391771,1724179844614,-194.73111635,0.00034931,21]
[335391772,1724179844625,-500.0,0.00034931,21]
[335391773,1724179844636,-500.0,0.00034931,21]
[335391774,1724179844652,-500.0,0.00034931,21]
[335391775,1724179844663,-500.0,0.00034931,21]
[335391776,1724179844672,-500.0,0.00034931,21]
[335391777,1724179844681,-502.80649111,0.00034931,21]
[335391778,1724179844690,-504.40534416,0.00034931,21]
[335391779,1724179844699,-500.0,0.00034931,21]
[335391780,1724179844709,-505.17119022,0.00034931,21]
[335391781,1724179844718,-500.0,0.00034931,21]
[335391782,1724179844727,-507.19159305,0.00034931,21]
[335391783,1724179844737,-499.99920809,0.00034931,21]
[335391784,1724179844748,-309.12426,0.00034931,7]
[335391785,1724179844759,-309.12426,0.00034931,7]
[335391786,1724179844770,-309.12426,0.00034931,7]
[335391787,1724179844779,-500.68730339,0.00034931,21]
[335391788,1724179844789,-309.12426,0.00034931,7]
[335391789,1724179844798,-369.9764512,0.00034931,21]
[335391790,1724179844807,-500.85401284,0.00034931,21]
[335391791,1724179844817,-309.12426,0.00034931,7]
[335391792,1724179844826,-309.12426,0.00034931,7]
[335391793,1724179844836,-309.12426,0.00034931,7]
[335391794,1724179844846,-501.59760848,0.00034931,21]
[335391795,1724179844855,-309.12426,0.00034931,7]
[335391796,1724179844865,-546.48982089,0.00034931,21]
[335391797,1724179844874,-500.0,0.00034931,21]
[335391798,1724179844883,-500.0,0.00034931,21]
[335391799,1724179844893,-500.0,0.00034931,21]
[335391800,1724179844903,-500.0,0.00034931,21]
[335391801,1724179844913,-500.0,0.00034931,21]
[335391802,1724179844922,-500.0,0.00034931,21]
[335391803,1724179844932,-515.46927583,0.00034931,21]
[335391804,1724179844941,-500.0,0.00034931,21]
[335391805,1724179844951,-500.0,0.00034931,21]
[335391806,1724179844960,-500.0,0.00034931,21]
[335391807,1724179844969,-389.58728103,0.00034931,21]
[335391808,1724179844978,-500.0,0.00034931,21]
[335391809,1724179844987,-500.0,0.00034931,21]
[335391810,1724179844996,-500.0,0.00034931,21]
[335391811,1724179845005,-1000.0,0.00034931,5]
[335391812,1724179845016,-500.0,0.00034931,21]
[335391813,1724179845028,-500.0,0.00034931,21]
[335391814,1724179845038,-1000.0,0.00034931,5]
[335391815,1724179845048,-500.0,0.00034931,21]
[335391816,1724179845057,-1000.0,0.00034931,5]
[335391817,1724179845066,-500.0,0.00034931,21]
[335391818,1724179845075,-1000.0,0.00034931,5]
[335391819,1724179845084,-500.0,0.00034931,21]
[335391820,1724179845093,-786.5064596,0.00034931,5]
[335391821,1724179845102,-500.0,0.00034931,21]
[335391822,1724179845112,-500.0,0.00034931,21]
[335391823,1724179845122,-500.0,0.00034931,21]
[335391824,1724179845132,-610.40900199,0.00034931,21]
[335391825,1724179845142,-712.12,0.00034931,21]
[335391826,1724179845151,-712.12,0.00034931,21]